fUSD/lending_fUSD_20240619
["ID","MTS","AMOUNT","RATE_DAILY","PERIOD"]
[329899278,1718807440177,-3000.0,0.00013678,2]
[329899279,1718807440187,-5905.95140644,0.00013697,2]
[329899280,1718807440198,-108.65596406,0.00013698,2]
[329899281,1718807440209,-303.01661567,0.00013698,2]
[329899282,1718807440219,-500.0,0.00013698,2]
[329899283,1718807440230,-500.0,0.00013698,2]
[329899284,1718807440240,-546.31,0.00013698,2]
[329899285,1718807440250,-500.0,0.00013698,2]
[329899286,1718807440260,-761.98,0.00013698,2]
[329899287,1718807440271,-500.0,0.00013698,2]
[329899288,1718807440281,-500.0,0.00013698,2]
[329899289,1718807440291,-500.0,0.00013698,2]
[329899290,1718807440301,-500.0,0.00013698,2]
[329899291,1718807440316,-1041.31,0.00013698,2]
[329899292,1718807440326,-1703.7,0.00013698,2]
[329899293,1718807440337,-500.0,0.00013698,2]
[329899294,1718807440349,-500.0,0.00013698,2]
[329899295,1718807440359,-500.0,0.00013698,2]
[329899296,1718807440369,-568.64,0.00013698,2]
[329899297,1718807440379,-640.81898826,0.00013698,2]
[329899298,1718807440393,-500.0,0.00013698,2]
[329899299,1718807440404,-500.0,0.00013698,2]
[329899300,1718807440415,-500.0,0.00013698,2]
[329899301,1718807440427,-697.85,0.00013698,2]
[329899302,1718807440438,-500.0,0.00013698,2]
[329899303,1718807440449,-500.0,0.00013698,2]
[329899305,1718807440460,-500.0,0.00013698,2]
[329899306,1718807440471,-1304.72,0.00013698,2]
[329899307,1718807440482,-662.79,0.00013698,2]
[329899308,1718807440493,-574.24,0.00013698,2]
[329899309,1718807440504,-500.0,0.00013698,2]
[329899310,1718807440514,-1724.38,0.00013698,2]
[329899311,1718807440525,-500.0,0.00013698,2]
[329899312,1718807440534,-924.57,0.00013698,2]
[329899313,1718807440545,-500.0,0.00013698,2]
[329899314,1718807440556,-815.04,0.00013698,2]
[329899315,1718807440566,-500.0,0.00013698,2]
[329899316,1718807440576,-645.41,0.00013698,2]
[329899317,1718807440585,-979.46,0.00013698,2]
[329899318,1718807440598,-500.0,0.00013698,2]
[329899319,1718807440608,-500.0,0.00013698,2]
[329899320,1718807440618,-675.95,0.00013698,2]
[329899321,1718807440628,-1251.92,0.00013698,2]
[329899322,1718807440638,-500.0,0.00013698,2]
[329899323,1718807440648,-500.0,0.00013698,2]
[329899324,1718807440658,-542.91,0.00013698,2]
[329899325,1718807440667,-500.0,0.00013698,2]
[329899326,1718807440679,-500.0,0.00013698,2]
[329899327,1718807440689,-1367.84,0.00013698,2]
[329899328,1718807440700,-905.54,0.00013698,2]
[329899329,1718807440710,-500.0,0.00013698,2]
[329899330,1718807440720,-155.35673224,0.00013698,2]
[329899331,1718807440730,-500.0,0.00013698,2]
[329899332,1718807440740,-477.47284808,0.00013698,2]
[329899333,1718807440750,-500.0,0.00013698,2]
[329899334,1718807440760,-500.0,0.00013698,2]
[329899335,1718807440770,-1565.24,0.00013698,2]
[329899336,1718807440780,-500.0,0.00013698,2]
[329899337,1718807440790,-700.88,0.00013698,2]
[329899338,1718807440800,-719.12,0.00013698,2]
[329899339,1718807440809,-3161.65,0.00013698,2]
[329899340,1718807440820,-500.0,0.00013698,2]
[329899341,1718807440829,-908.87,0.00013698,2]
[329899342,1718807440840,-500.0,0.00013698,2]
[329899343,1718807440850,-565.97,0.00013698,2]
[329899344,1718807440860,-500.0,0.00013698,2]
[329899346,1718807440870,-500.0,0.00013698,2]
[329899347,1718807440881,-518.95648126,0.00013698,2]
[329899348,1718807440890,-527.86,0.00013698,2]
[329899349,1718807440901,-481.31047649,0.00013698,2]
[329899350,1718807440912,-500.0,0.00013698,2]
[329899351,1718807440922,-500.0,0.00013698,2]
[329899352,1718807440933,-880.47,0.00013698,2]
[329899354,1718807440943,-500.0,0.00013698,2]
[329899356,1718807440953,-500.0,0.00013698,2]
[329899358,1718807440964,-500.0,0.00013698,2]
[329899360,1718807440974,-500.0,0.00013698,2]
[329899361,1718807440984,-500.0,0.00013698,2]
[329899362,1718807440994,-1113.52,0.00013698,2]
[329899363,1718807441005,-1135.28,0.00013698,2]
[329899364,1718807441015,-500.0,0.00013698,2]
[329899365,1718807441025,-500.0,0.00013698,2]
[329899366,1718807441036,-188.50425906,0.00013698,2]
[329899392,1718807442244,-1238.54574094,0.00013698,2]
[329899393,1718807442253,-594.10804172,0.00013698,2]
[329899394,1718807442263,-752.91,0.00013698,2]
[329899395,1718807442274,-500.0,0.00013698,2]
[329899396,1718807442284,-500.0,0.00013698,2]
[329899397,1718807442294,-909.17,0.00013698,2]
[329899398,1718807442306,-500.0,0.00013698,2]
[329899399,1718807442318,-1335.59,0.00013698,2]
[329899400,1718807442328,-500.0,0.00013698,2]
[329899401,1718807442338,-756.5,0.00013698,2]
[329899402,1718807442348,-500.0,0.00013698,2]
[329899403,1718807442358,-500.0,0.00013698,2]
[329899404,1718807442368,-798.37,0.00013698,2]
[329899405,1718807442378,-1378.25,0.00013698,2]
[329899406,1718807442389,-789.44,0.00013698,2]
[329899407,1718807442399,-1469.44,0.00013698,2]
[329899408,1718807442408,-555.72,0.00013698,2]
[329899409,1718807442418,-500.0,0.00013698,2]
[329899410,1718807442429,-917.86,0.00013698,2]
[329899411,1718807442439,-1245.39,0.00013698,2]
[329899412,1718807442448,-500.0,0.00013698,2]
[329899413,1718807442458,-677.63,0.00013698,2]
[329899414,1718807442468,-505.02,0.00013698,2]
[329899415,1718807442477,-500.0,0.00013698,2]
[329899416,1718807442487,-870.24,0.00013698,2]
[329899417,1718807442497,-500.0,0.00013698,2]
[329899418,1718807442507,-500.0,0.00013698,2]
[329899419,1718807442517,-2759.35,0.00013698,2]
[329899420,1718807442527,-909.63,0.00013698,2]
[329899421,1718807442537,-500.0,0.00013698,2]
[329899422,1718807442546,-974.76,0.00013698,2]
[329899423,1718807442556,-500.0,0.00013698,2]
[329899424,1718807442566,-818.13,0.00013698,2]
[329899425,1718807442575,-556.63,0.00013698,2]
[329899426,1718807442585,-1388.89,0.00013698,2]
[329899427,1718807442595,-1423.49,0.00013698,2]
[329899428,1718807442604,-1050.74,0.00013698,2]
[329899429,1718807442615,-500.0,0.00013698,2]
[329899430,1718807442624,-500.0,0.00013698,2]
[329899431,1718807442634,-555.19,0.00013698,2]
[329899432,1718807442644,-500.0,0.00013698,2]
[329899433,1718807442654,-1200.09,0.00013698,2]
[329899434,1718807442664,-500.0,0.00013698,2]
[329899435,1718807442674,-940.14,0.00013698,2]
[329899436,1718807442686,-1651.24,0.00013698,2]
[329899437,1718807442696,-500.0,0.00013698,2]
[329899438,1718807442706,-500.0,0.00013698,2]
[329899439,1718807442715,-602.11,0.00013698,2]
[329899440,1718807442725,-1745.1,0.00013698,2]
[329899441,1718807442735,-1273.58,0.00013698,2]
[329899442,1718807442745,-500.0,0.00013698,2]
[329899443,1718807442755,-885.47,0.00013698,2]
[329899444,1718807442765,-500.0,0.00013698,2]
[329899445,1718807442775,-1525.89,0.00013698,2]
[329899446,1718807442785,-1090.09,0.00013698,2]
[329899447,1718807442795,-507.0,0.00013698,2]
[329899448,1718807442805,-500.0,0.00013698,2]
[329899449,1718807442815,-500.0,0.00013698,2]
[329899450,1718807442824,-500.0,0.00013698,2]
[329899451,1718807442834,-582.27,0.00013698,2]
[329899452,1718807442844,-990.42,0.00013698,2]
[329899453,1718807442854,-500.0,0.00013698,2]
[329899454,1718807442864,-500.0,0.00013698,2]
[329899455,1718807442874,-500.0,0.00013698,2]
[329899456,1718807442883,-1060.6,0.00013698,2]
[329899457,1718807442893,-623.01,0.00013698,2]
[329899458,1718807442903,-1185.1,0.00013698,2]
[329899459,1718807442913,-500.35,0.00013698,2]
[329899460,1718807442923,-974.76,0.00013698,2]
[329899461,1718807442936,-791.54057204,0.00013698,5]
[329899462,1718807442945,-688.05,0.00013698,2]
[329899463,1718807442955,-688.36,0.00013698,2]
[329899464,1718807442965,-597.8,0.00013698,2]
[329899465,1718807442975,-500.0,0.00013698,2]
[329899466,1718807442984,-1490.62,0.00013698,2]
[329899467,1718807442994,-500.0,0.00013698,2]
[329899468,1718807443004,-1591.17,0.00013698,2]
[329899469,1718807443013,-500.0,0.00013698,2]
[329899470,1718807443023,-609.26,0.00013698,2]
[329899471,1718807443032,-1064.31,0.00013698,2]
[329899472,1718807443042,-599.87,0.00013698,2]
[329899473,1718807443052,-700.67,0.00013698,2]
[329899474,1718807443062,-500.0,0.00013698,2]
[329899475,1718807443071,-500.0,0.00013698,2]
[329899476,1718807443081,-646.52903763,0.00013698,2]
[329899477,1718807443090,-698.01,0.00013698,2]
[329899478,1718807443100,-397.17020296,0.00013698,2]
[329899479,1718807443110,-500.0,0.00013698,2]
[329899480,1718807443119,-909.88,0.00013698,2]
[329899481,1718807443129,-914.34,0.00013698,2]
[329899482,1718807443141,-2265.9,0.00013698,2]
[329899483,1718807443150,-1448.33,0.00013698,2]
[329899484,1718807443160,-304.61863798,0.00013698,2]
[329899485,1718807443169,-500.0,0.00013698,2]
[329899486,1718807443179,-1804.46,0.00013698,2]
[329899487,1718807443189,-965.62,0.00013698,2]
[329899488,1718807443199,-1703.27,0.00013698,2]
[329899489,1718807443209,-847.82,0.00013698,2]
[329899490,1718807443219,-1125.18,0.00013698,2]
[329899491,1718807443228,-1420.22,0.00013698,2]
[329899492,1718807443238,-705.89,0.00013698,2]
[329899493,1718807443247,-799.37,0.00013698,2]
[329899494,1718807443256,-966.51,0.00013698,2]
[329899495,1718807443266,-916.67,0.00013698,2]
[329899496,1718807443276,-585.98,0.00013698,2]
[329899498,1718807443285,-1877.08,0.00013698,2]
[329899500,1718807443295,-500.0,0.00013698,2]
[329899501,1718807443305,-1642.28,0.00013698,2]
[329899502,1718807443318,-1612.65,0.00013698,2]
[329899503,1718807443328,-500.0,0.00013698,2]
[329899504,1718807443338,-500.0,0.00013698,2]
[329899505,1718807443347,-809.2,0.00013698,2]
[329899506,1718807443358,-500.0,0.00013698,2]
[329899507,1718807443368,-684.7,0.00013698,2]
[329899508,1718807443377,-1088.03,0.00013698,2]
[329899509,1718807443388,-500.0,0.00013698,2]
[329899510,1718807443400,-1038.99,0.00013698,2]
[329899511,1718807443409,-1297.43,0.00013698,2]
[329899512,1718807443418,-964.4,0.00013698,2]
[329899513,1718807443430,-500.0,0.00013698,2]
[329899514,1718807443440,-500.0,0.00013698,2]
[329899515,1718807443449,-500.0,0.00013698,2]
[329899516,1718807443459,-712.05,0.00013698,2]
[329899517,1718807443469,-931.68,0.00013698,2]
[329899518,1718807443479,-500.0,0.00013698,2]
[329899519,1718807443488,-500.0,0.00013698,2]
[329899520,1718807443498,-500.0,0.00013698,2]
[329899521,1718807443508,-962.96,0.00013698,2]
[329899522,1718807443518,-1304.45,0.00013698,2]
[329899523,1718807443528,-1124.38,0.00013698,2]
[329899524,1718807443537,-1391.24,0.00013698,2]
[329899525,1718807443546,-1339.0,0.00013698,2]
[329899526,1718807443555,-500.0,0.00013698,2]
[329899527,1718807443564,-500.0,0.00013698,2]
[329899528,1718807443574,-1971.78,0.00013698,2]
[329899529,1718807443583,-1332.38,0.00013698,2]
[329899530,1718807443593,-500.0,0.00013698,2]
[329899531,1718807443603,-500.0,0.00013698,2]
[329899532,1718807443612,-2094.53,0.00013698,2]
[329899533,1718807443622,-1192.48,0.00013698,2]
[329899534,1718807443631,-611.7,0.00013698,2]
[329899535,1718807443640,-2147.18,0.00013698,2]
[329899536,1718807443650,-500.0,0.00013698,2]
[329899537,1718807443659,-1618.0,0.00013698,2]
[329899538,1718807443668,-791.52,0.00013698,2]
[329899539,1718807443677,-641.92,0.00013698,2]
[329899540,1718807443693,-500.0,0.00013698,2]
[329899544,1718807443703,-1151.97,0.00013698,2]
[329899547,1718807443713,-1385.42205323,0.00013698,2]
[329899553,1718807443731,-999.51669964,0.00013698,2]
[329899557,1718807443876,-746.38124713,0.00013698,2]
[329899558,1718807443886,-863.18,0.00013698,2]
[329899559,1718807443896,-1013.05,0.00013698,2]
[329899560,1718807443905,-500.0,0.00013698,2]
[329899561,1718807443915,-512.9,0.00013698,2]
[329899562,1718807443925,-500.0,0.00013698,2]
[329899563,1718807443938,-500.0,0.00013698,2]
[329899564,1718807443948,-819.92075288,0.00013698,2]
[329899571,1718807444700,-500.0,0.00013309,2]
[329899572,1718807444712,-652.328,0.00013309,2]
[329899573,1718807444722,-269.73924712,0.00013698,2]
[329899574,1718807444732,-684.03,0.00013698,2]
[329899575,1718807444741,-500.10120716,0.00013698,2]
[329899576,1718807444750,-690.82615819,0.00013698,2]
[329899577,1718807444762,-807.62984604,0.00013698,2]
[329899578,1718807444837,-182.16399577,0.00013698,2]
[329899579,1718807444847,-661.29,0.00013698,2]
[329899580,1718807444857,-502.88,0.00013698,2]
[329899581,1718807444866,-296.16162819,0.00013698,2]
[329899582,1718807444876,-1485.2,0.00013698,2]
[329899583,1718807444886,-592.61,0.00013698,2]
[329899584,1718807444896,-500.0,0.00013698,2]
[329899585,1718807444905,-981.96911481,0.00013698,2]
[329899586,1718807444916,-380.1,0.00013698,2]
[329899587,1718807444928,-566.48827844,0.00013698,2]
[329899588,1718807444940,-230.33260675,0.00013698,2]
[329899589,1718807444950,-434.01739336,0.00013698,2]
[329899590,1718807444965,-161.53260664,0.00013698,2]
[329899591,1718807444975,-663.42,0.00013698,2]
[329899592,1718807444984,-500.0,0.00013698,2]
[329899593,1718807444994,-1064.54739336,0.00013698,2]
[329899594,1718807445006,-154.26260664,0.00013698,2]
[329899595,1718807445015,-500.0,0.00013698,2]
[329899596,1718807445025,-1194.0,0.00013698,2]
[329899597,1718807445034,-500.0,0.00013698,2]
[329899598,1718807445043,-774.39,0.00013698,2]
[329899599,1718807445053,-5000.0,0.00013698,2]
[329899600,1718807445063,-596.12,0.00013698,2]
[329899601,1718807445072,-14102.0345242,0.00013698,2]
[329899602,1718807445209,-1101.1854758,0.00013698,2]
[329899603,1718807445218,-5661.08,0.00013698,2]
[329899604,1718807445228,-244.81293486,0.00013698,2]
[329899605,1718807445237,-1147.28,0.00013698,2]
[329899606,1718807445246,-1638.07,0.00013698,2]
[329899607,1718807445255,-500.0,0.00013698,2]
[329899608,1718807445264,-500.0,0.00013698,2]
[329899609,1718807445273,-2470.04,0.00013698,2]
[329899610,1718807445284,-500.0,0.00013698,2]
[329899611,1718807445293,-718.6,0.00013698,2]
[329899612,1718807445303,-801.8,0.00013698,2]
[329899613,1718807445313,-1007.6,0.00013698,2]
[329899614,1718807445326,-500.0,0.00013698,2]
[329899615,1718807445335,-510.6523979,0.00013698,2]
[329899616,1718807445344,-500.0,0.00013698,2]
[329899617,1718807445354,-8763.65,0.00013698,2]
[329899618,1718807445363,-1306.94,0.00013698,2]
[329899619,1718807445372,-652.07,0.00013698,2]
[329899620,1718807445381,-500.0,0.00013698,2]
[329899621,1718807445391,-1854.33,0.00013698,2]
[329899622,1718807445401,-500.0,0.00013698,2]
[329899623,1718807445412,-1529.72,0.00013698,2]
[329899624,1718807445421,-4391.3,0.00013698,2]
[329899625,1718807445433,-788.93,0.00013698,2]
[329899626,1718807445443,-500.0,0.00013698,2]
[329899627,1718807445453,-500.0,0.00013698,2]
[329899628,1718807445462,-500.0,0.00013698,2]
[329899629,1718807445472,-1140.36,0.00013698,2]
[329899630,1718807445481,-1972.08,0.00013698,2]
[329899631,1718807445491,-3394.23,0.00013698,2]
[329899632,1718807445500,-500.0,0.00013698,2]
[329899633,1718807445509,-2551.64,0.00013698,2]
[329899634,1718807445519,-1148.44,0.00013698,2]
[329899635,1718807445528,-500.0,0.00013698,2]
[329899636,1718807445537,-1153.22,0.00013698,2]
[329899637,1718807445547,-1435.99,0.00013698,2]
[329899638,1718807445557,-3090.33,0.00013698,2]
[329899639,1718807445566,-9254.8,0.00013698,2]
[329899640,1718807445577,-500.0,0.00013698,2]
[329899641,1718807445587,-1073.89,0.00013698,2]
[329899642,1718807445597,-1237.1,0.00013698,2]
[329899643,1718807445606,-500.0,0.00013698,2]
[329899644,1718807445616,-1455.09,0.00013698,2]
[329899645,1718807445625,-755.82,0.00013698,2]
[329899646,1718807445635,-16418.56,0.00013698,2]
[329899647,1718807445644,-6352.89,0.00013698,2]
[329899648,1718807445654,-4412.76,0.00013698,2]
[329899649,1718807445898,-1576.56,0.00013698,2]
[329899650,1718807445908,-1730.03,0.00013698,2]
[329899651,1718807445917,-500.0,0.00013698,2]
[329899652,1718807445927,-2752.48,0.00013698,2]
[329899653,1718807445937,-535.03,0.00013698,2]
[329899654,1718807445945,-500.0,0.00013698,2]
[329899655,1718807445955,-694.36,0.00013698,2]
[329899656,1718807445964,-1003.18,0.00013698,2]
[329899657,1718807445973,-500.0,0.00013698,2]
[329899658,1718807445983,-846.35,0.00013698,2]
[329899659,1718807445992,-8320.78,0.00013698,2]
[329899661,1718807446002,-5766.78,0.00013698,2]
[329899662,1718807446011,-6395.74,0.00013698,2]
[329899663,1718807446020,-1685.81,0.00013698,2]
[329899664,1718807446029,-3364.34,0.00013698,2]
[329899665,1718807446039,-1183.45,0.00013698,2]
[329899666,1718807446048,-3561.87,0.00013698,2]
[329899667,1718807446057,-1043.04,0.00013698,2]
[329899668,1718807446067,-500.0,0.00013698,2]
[329899669,1718807446076,-3601.88,0.00013698,2]
[329899670,1718807446085,-542.51,0.00013698,2]
[329899671,1718807446094,-500.0,0.00013698,2]
[329899672,1718807446103,-2594.37,0.00013698,2]
[329899673,1718807446112,-1598.14,0.00013698,2]
[329899674,1718807446121,-2960.04,0.00013698,2]
[329899675,1718807446131,-1306.99,0.00013698,2]
[329899676,1718807446140,-4613.09,0.00013698,2]
[329899677,1718807446149,-500.0,0.00013698,2]
[329899678,1718807446158,-500.0,0.00013698,2]
[329899679,1718807446167,-808.22,0.00013698,2]
[329899680,1718807446177,-500.0,0.00013698,2]
[329899681,1718807446187,-500.0,0.00013698,2]
[329899682,1718807446197,-907.02,0.00013698,2]
[329899683,1718807446206,-1422.64,0.00013698,2]
[329899684,1718807446215,-791.92,0.00013698,2]
[329899685,1718807446225,-500.0,0.00013698,2]
[329899686,1718807446234,-2179.27,0.00013698,2]
[329899687,1718807446243,-635.84,0.00013698,2]
[329899688,1718807446253,-1030.17,0.00013698,2]
[329899689,1718807446262,-4250.93,0.00013698,2]
[329899690,1718807446272,-565.66,0.00013698,2]
[329899691,1718807446281,-921.31,0.00013698,2]
[329899692,1718807446291,-500.0,0.00013698,2]
[329899693,1718807446300,-2874.06854725,0.00013698,2]
[329899694,1718807446318,-658.11145275,0.00013698,2]
[329899695,1718807446328,-1230.55,0.00013698,2]
[329899696,1718807446338,-2833.89,0.00013698,2]
[329899697,1718807446347,-3631.98,0.00013698,2]
[329899698,1718807446356,-500.0,0.00013698,2]
[329899699,1718807446365,-4953.81,0.00013698,2]
[329899700,1718807446375,-500.0,0.00013698,2]
[329899701,1718807446385,-836.08,0.00013698,2]
[329899702,1718807446394,-2886.18,0.00013698,2]
[329899703,1718807446404,-629.61,0.00013698,2]
[329899704,1718807446414,-1803.88,0.00013698,2]
[329899705,1718807446423,-669.73,0.00013698,2]
[329899706,1718807446434,-500.0,0.00013698,2]
[329899707,1718807446444,-1154.22,0.00013698,2]
[329899709,1718807446453,-2788.88,0.00013698,2]
[329899710,1718807446463,-1052.75,0.00013698,2]
[329899712,1718807446472,-2875.02,0.00013698,2]
[329899715,1718807446483,-500.0,0.00013698,2]
[329899717,1718807446493,-500.0,0.00013698,2]
[329899720,1718807446503,-500.0,0.00013698,2]
[329899722,1718807446513,-500.0,0.00013698,2]
[329899725,1718807446523,-500.0,0.00013698,2]
[329899727,1718807446532,-500.0,0.00013698,2]
[329899730,1718807446541,-1448.79,0.00013698,2]
[329899732,1718807446551,-500.0,0.00013698,2]
[329899735,1718807446560,-500.0,0.00013698,2]
[329899737,1718807446570,-500.0,0.00013698,2]
[329899740,1718807446580,-3141.36,0.00013698,2]
[329899742,1718807446589,-2617.08905039,0.00013698,2]
[329899768,1718807447234,-209.31609262,0.00013697,2]
[329899769,1718807447243,-1704.38924454,0.00013697,2]
[329899771,1718807447253,-753.60094961,0.00013698,2]
[329899773,1718807447262,-500.0,0.00013698,2]
[329899774,1718807447271,-500.0,0.00013698,2]
[329899776,1718807447280,-6600.88609553,0.00013698,2]
[329899790,1718807447991,-449.30986604,0.00013697,2]
[329899791,1718807448001,-157.99223805,0.00013697,2]
[329899792,1718807448011,-4438.52390447,0.00013698,2]
[329899793,1718807448022,-1346.45,0.00013698,2]
[329899794,1718807448031,-894.22969069,0.00013698,2]
[329899795,1718807448043,-17507.714408,0.00013698,2]
[329899796,1718807448054,-419.53590131,0.00013698,2]
[329899797,1718807448065,-679.21,0.00013698,2]
[329899798,1718807448074,-2009.54,0.00013698,2]
[329899799,1718807448084,-500.0,0.00013698,2]
[329899800,1718807448093,-609.48,0.00013698,2]
[329899801,1718807448103,-2640.32,0.00013698,2]
[329899802,1718807448112,-620.29,0.00013698,2]
[329899803,1718807448122,-914.77,0.00013698,2]
[329899804,1718807448132,-6557.51,0.00013698,2]
[329899805,1718807448142,-729.25,0.00013698,2]
[329899806,1718807448151,-679.76,0.00013698,2]
[329899807,1718807448162,-1053.01,0.00013698,2]
[329899808,1718807448172,-500.0,0.00013698,2]
[329899809,1718807448183,-2431.36,0.00013698,2]
[329899810,1718807448193,-500.98,0.00013698,2]
[329899811,1718807448203,-500.0,0.00013698,2]
[329899812,1718807448213,-3714.4,0.00013698,2]
[329899813,1718807448222,-1072.81,0.00013698,2]
[329899814,1718807448232,-2513.32,0.00013698,2]
[329899815,1718807448242,-1082.24,0.00013698,2]
[329899816,1718807448252,-824.73,0.00013698,2]
[329899817,1718807448262,-500.0,0.00013698,2]
[329899818,1718807448271,-3768.47,0.00013698,2]
[329899819,1718807448281,-851.99,0.00013698,2]
[329899820,1718807448290,-500.0,0.00013698,2]
[329899821,1718807448299,-1172.86,0.00013698,2]
[329899822,1718807448310,-34776.4,0.00013698,2]
[329899823,1718807448323,-545.0,0.00013698,2]
[329899824,1718807448332,-2296.72,0.00013698,2]
[329899825,1718807448342,-500.0,0.00013698,2]
[329899826,1718807448352,-548.14,0.00013698,2]
[329899827,1718807448361,-2753.95,0.00013698,2]
[329899828,1718807448371,-500.0,0.00013698,2]
[329899829,1718807448380,-4442.15,0.00013698,2]
[329899830,1718807448390,-2233.11,0.00013698,2]
[329899831,1718807448404,-500.0,0.00013698,2]
[329899832,1718807448414,-4534.72,0.00013698,2]
[329899833,1718807448423,-1605.47,0.00013698,2]
[329899834,1718807448434,-500.0,0.00013698,2]
[329899835,1718807448445,-7328.24,0.00013698,2]
[329899836,1718807448454,-2494.94,0.00013698,2]
[329899837,1718807448464,-1658.46,0.00013698,2]
[329899838,1718807448473,-500.0,0.00013698,2]
[329899839,1718807448483,-722.22,0.00013698,2]
[329899840,1718807448492,-5602.04,0.00013698,2]
[329899841,1718807448501,-2639.84,0.00013698,2]
[329899842,1718807448511,-570.86,0.00013698,2]
[329899843,1718807448520,-500.0,0.00013698,2]
[329899844,1718807448530,-500.0,0.00013698,2]
[329899845,1718807448540,-1419.13,0.00013698,2]
[329899846,1718807448549,-270.34,0.00013698,2]
[329899847,1718807448559,-1286.48,0.00013698,2]
[329899848,1718807448568,-1154.46,0.00013698,2]
[329899849,1718807448578,-1910.21,0.00013698,2]
[329899850,1718807448587,-7129.56,0.00013698,2]
[329899851,1718807448596,-1950.27,0.00013698,2]
[329899852,1718807448606,-500.0,0.00013698,2]
[329899853,1718807448615,-500.0,0.00013698,2]
[329899854,1718807448624,-929.2,0.00013698,2]
[329899855,1718807448634,-2129.3,0.00013698,2]
[329899856,1718807448644,-500.0,0.00013698,2]
[329899857,1718807448653,-953.49,0.00013698,2]
[329899858,1718807448663,-1015.16,0.00013698,2]
[329899859,1718807448672,-960.16,0.00013698,2]
[329899860,1718807448682,-500.0,0.00013698,2]
[329899861,1718807448691,-23435.74,0.00013698,2]
[329899862,1718807448702,-48117.73285096,0.00013698,2]
[329899863,1718807450092,-3595.55,0.00013309,2]
[329899864,1718807450104,-2190.45,0.00013309,2]
[329899865,1718807450114,-873.17864291,0.00013696,2]
[329899866,1718807450124,-259.88366225,0.00013697,2]
[329899867,1718807450134,-6216.72714904,0.00013698,2]
[329899868,1718807450144,-1855.0,0.00013698,2]
[329899869,1718807450154,-268.7605458,0.00013698,2]
[329899870,1718807450166,-231.2394542,0.00013698,2]
[329899871,1718807450175,-2779.04,0.00013698,2]
[329899872,1718807450186,-269.61036121,0.00013698,2]
[329899873,1718807450196,-1539.81,0.00013698,2]
[329899874,1718807450205,-16264.28,0.00013698,2]
[329899875,1718807450214,-500.0,0.00013698,2]
[329899876,1718807450223,-1925.92,0.00013698,2]
[329899877,1718807450231,-8640.61,0.00013698,2]
[329899878,1718807450241,-2808.69,0.00013698,2]
[329899879,1718807450250,-750.01,0.00013698,2]
[329899880,1718807450260,-1920.24,0.00013698,2]
[329899881,1718807450270,-709.85,0.00013698,2]
[329899882,1718807450280,-1790.47,0.00013698,2]
[329899883,1718807450288,-4561.72,0.00013698,2]
[329899884,1718807450299,-500.0,0.00013698,2]
[329899885,1718807450309,-500.0,0.00013698,2]
[329899886,1718807450322,-3271.33,0.00013698,2]
[329899887,1718807450333,-1247.62,0.00013698,2]
[329899888,1718807450342,-500.0,0.00013698,2]
[329899889,1718807450352,-2963.0,0.00013698,2]
[329899890,1718807450363,-883.84,0.00013698,2]
[329899891,1718807450372,-1772.69663494,0.00013698,2]